[Event "Marshall CC U2400 03-2025"]
[Site "New York"]
[Date "2025.03.23"]
[Round "3.4"]
[White "Paruchuri, Naveen"]
[Black "Shen, Leo Xiaohang"]
[Result "1/2-1/2"]
[Annotator "TA"]
[ECO "D53"]
[WhiteElo "1847"]
[BlackElo "1968"]
[PlyCount "171"]
[EventDate "2025.03.20"]
[EventType "swiss"]
[EventCountry "USA"]
[SourceTitle "playchess.com"]
[Source "ChessBase"]
[SourceQuality "1"]
[TimeControl "5400+30"]

{[%evp 17,171,43,45,34,42,35,62,34,82,76,81,87,89,93,152,124,137,124,124,124,124,133,141,139,131,66,76,43,58,35,32,36,74,27,36,17,10,-31,-2,0,0,0,-8,-8,31,0,20,0,35,27,30,33,49,49,49,49,59,38,38,38,57,38,38,16,16,16,16,16,16,16,16,16,16,16,16,15,15,15,15,15,15,15,15,15,15,0,0,0,0,0,0,0,0,0,0,0,0,0,0,0,0,0,0,0,0,0,0,0,0,0,8,8,8,8,8,8,8,8,8,8,8,8,8,8,8,0,8,8,8,8,8,0,0,0,0,0,0,0,0,0,0,0,0,0,0,0,0,0,0,0,0,0,0,0,0,0]} 1. d4 {[%emt 0:00:30]} d5 {[%emt 0:00:01]} 2. c4 {[%emt 0:00:00]} c6 {[%emt 0:00:02]} 3. Nf3 {[%emt 0:00:00]} Nf6 {[%emt 0:00:02]} 4. Nc3 {[%emt 0:00:00]} e6 {[%emt 0:00:01]} 5. Bg5 {[%emt 0:00:00]} Be7 {[%emt 0:00:03]} 6. e3 {[%emt 0:00:00]} Nbd7 {[%emt 0:00:02]} 7. Bd3 {[%emt 0:00:20]} dxc4 {[%emt 0:00:03]} 8. Bxc4 {[%emt 0:00:06]} b5 {[%emt 0:00:03]} 9. Bd3 {[%emt 0:00:05]} a6 {[%emt 0:00:04]} 10. Bxf6 {[%emt 0:01:05] D53: Queen's Gambit Declined: 4 Bg5 Be7: Early deviations.} Bxf6 {[%emt 0:02:07]} 11. Ne4 {[%emt 0:00:14]} O-O {[%emt 0:00:12]} 12. Rc1 {[%emt 0:01:58] White is slightly better.} Bb7 {[%emt 0:00:39]} (12... Be7 $1 $14) 13. Nd6 $16 {[%emt 0:01:20] White is much more active. Excellent horsemanship.} Qc7 {[%emt 0:03:37]} 14. Nxb7 {[%emt 0:00:13]} Qxb7 {[%emt 0:00:02]} 15. Qc2 {[%emt 0:00:12][%csl LRh7,Oc6] White attacks a weakness} Rac8 {[%emt 0:01:20]} ({Black should play} 15... h5) 16. Bxh7+ {[%emt 0:00:10]} Kh8 {[%emt 0:00:02]} 17. Be4 {[%emt 0:01:00]} Qb6 {[%emt 0:00:08]} 18. b4 {[%emt 0:04:17]} (18. Bxc6 $2 Nb8 19. O-O (19. d5 $2 exd5 20. Qf5 Nxc6 $19) 19... Rxc6 $19 (19... Nxc6 $2 20. Qe4 $19)) 18... a5 {[%emt 0:01:10]} 19. a3 {[%emt 0:01:40]} (19. Bxc6 $2 Nb8 20. O-O (20. d5 $2 exd5 21. Qf5 axb4 $19) 20... Nxc6 (20... Qxc6 $2 21. Qb2 $19) 21. bxa5 Qxa5 $19) 19... axb4 $146 {[%emt 0:01:12]} ({Predecessor:} 19... Be7 20. Qc3 axb4 21. axb4 f5 22. Bc2 Nf6 23. Ne5 Kh7 24. Qb3 Nd5 25. Nd7 Qc7 26. Nxf8+ Rxf8 {1-0 Prakhar,G (1310)-Sriram,B (1570) IND-ch U11 30th 2016 (6)}) 20. axb4 {[%emt 0:00:04]} Be7 {[%emt 0:00:11]} 21. Qb3 {[%emt 0:01:53]} (21. Bxc6 $2 {perishes.} Nb8 22. d5 exd5 $19 (22... Bxb4+ 23. Kf1 $17)) (21. Rb1 $16) 21... Nf6 $14 {[%emt 0:00:33]} 22. Nd2 {[%emt 0:00:18]} Nd5 {[%emt 0:01:28]} 23. Bxd5 {[%emt 0:00:05]} cxd5 {[%emt 0:00:04]} 24. O-O {[%emt 0:01:18]} Qd6 {[%emt 0:01:26]} 25. Rc5 {[%emt 0:03:10]} (25. Qd3 $16) 25... Qa6 $11 {[%emt 0:02:02]} 26. Rxc8 {[%emt 0:03:19]} Rxc8 {[%emt 0:01:48]} 27. e4 {[%emt 0:01:23]} Qc6 {[%emt 0:02:42]} 28. exd5 {[%emt 0:02:14]} Qxd5 {[%emt 0:05:21]} 29. Qxd5 {[%emt 0:01:50]} exd5 {[%emt 0:00:03][%mdl 4096] Endgame KRB-KRN. White is a pawn up.} 30. Rb1 {[%emt 0:01:17]} f6 {[%emt 0:01:18]} 31. Kf1 {[%emt 0:00:45]} Ra8 {[%emt 0:00:36]} 32. Ke2 {[%emt 0:01:04]} Ra4 {[%emt 0:00:07][%cal Oa4a2]} 33. Nf1 {[%emt 0:01:13]} Bxb4 {[%emt 0:05:52]} 34. Ne3 {[%emt 0:00:24]} Bc3 {[%emt 0:03:27]} 35. Rxb5 {[%emt 0:00:21]} Bxd4 {[%emt 0:00:58]} 36. Rxd5 {[%emt 0:00:16]} Bxe3 {[%emt 0:01:06]} 37. fxe3 $14 {[%emt 0:02:36] KR-KR. White is a pawn up.} Kh7 {[%emt 0:00:18]} 38. Kf3 {[%emt 0:00:24]} Ra2 {[%emt 0:00:35]} 39. h3 {[%emt 0:03:05]} g5 {[%emt 0:01:46]} 40. h4 {[%emt 0:01:04]} gxh4 {[%emt 0:00:32] The position is equal.} 41. Rh5+ {[%emt 0:00:09]} Kg6 {[%emt 0:00:03]} 42. Rxh4 {[%emt 0:00:09]} Ra3 {[%emt 0:00:25]} 43. Rg4+ {[%emt 0:00:26]} Kf5 {[%emt 0:00:09]} 44. Rg8 {[%emt 0:00:19]} Ke6 {[%emt 0:01:30]} 45. Re8+ {[%emt 0:01:29]} Kf5 {[%emt 0:00:30]} 46. g4+ {[%emt 0:00:08]} Kg6 {[%emt 0:00:07]} 47. Rg8+ {[%emt 0:01:09]} Kf7 {[%emt 0:00:05]} 48. Rb8 {[%emt 0:00:31]} Kg6 {[%emt 0:00:37]} 49. Rb5 {[%emt 0:00:59]} Rc3 {[%emt 0:00:33]} 50. Kf4 {[%emt 0:00:51]} Rc4+ {[%emt 0:00:15]} 51. e4 {[%emt 0:00:14]} Rc1 {[%emt 0:00:04]} 52. Rb3 {[%emt 0:00:39]} Rf1+ {[%emt 0:00:25]} 53. Rf3 {[%emt 0:00:06]} Ra1 {[%emt 0:00:05]} 54. Rf2 {[%emt 0:00:39]} Ra4 {[%emt 0:00:18]} 55. Re2 {[%emt 0:00:40]} Rb4 {[%emt 0:00:09]} 56. Kf3 {[%emt 0:00:11]} Kg5 {[%emt 0:00:10]} 57. Re3 $1 {[%emt 0:00:48]} Ra4 {[%emt 0:00:31]} 58. Rd3 {[%emt 0:00:34]} Ra1 {[%emt 0:00:17]} 59. Rd5+ {[%emt 0:00:13]} Kg6 {[%emt 0:00:01]} 60. e5 {[%emt 0:00:26]} fxe5 {[%emt 0:00:20]} 61. Rxe5 {[%emt 0:00:05]} Ra3+ {[%emt 0:00:28]} 62. Kf4 {[%emt 0:00:18]} Ra4+ {[%emt 0:00:01]} 63. Kg3 {[%emt 0:00:08]} Ra3+ {[%emt 0:00:15]} 64. Kh4 {[%emt 0:00:09]} Ra6 {[%emt 0:00:03]} 65. Rg5+ {[%emt 0:00:47]} Kh6 {[%emt 0:00:11]} 66. Rc5 {[%emt 0:00:21]} Kg6 {[%emt 0:00:06]} 67. Rc8 {[%emt 0:00:22]} Rb6 {[%emt 0:00:16]} 68. Rg8+ {[%emt 0:00:24]} Kh7 {[%emt 0:00:15]} 69. Rg5 $1 {[%emt 0:00:34]} Kh6 {[%emt 0:00:03]} 70. Rf5 {[%emt 0:00:54]} Kg6 {[%emt 0:00:05]} 71. Re5 {[%emt 0:00:26]} Ra6 {[%emt 0:00:02]} 72. Re4 {[%emt 0:00:17]} Rb6 {[%emt 0:00:08]} 73. Rc4 {[%emt 0:01:07]} Ra6 {[%emt 0:00:02]} 74. g5 {[%emt 0:00:07]} Rb6 {[%emt 0:00:02]} 75. Kg4 {[%emt 0:00:22]} Ra6 {[%emt 0:00:01]} 76. Kf4 {[%emt 0:00:20]} Rb6 {[%emt 0:00:02]} 77. Re4 {[%emt 0:00:26]} Ra6 {[%emt 0:00:03]} 78. Rd4 {[%emt 0:00:35]} Rb6 {[%emt 0:00:02]} 79. Kg4 {[%emt 0:00:17]} Ra6 {[%emt 0:00:01]} 80. Rf4 {[%emt 0:00:09]} Rb6 {[%emt 0:00:02]} 81. Rf8 {[%emt 0:00:11]} Rb4+ {[%emt 0:00:03]} 82. Rf4 {[%emt 0:00:05]} Rb6 {[%emt 0:00:12]} 83. Kh4 {[%emt 0:00:16]} Ra6 {[%emt 0:00:01]} 84. Kg4 {[%emt 0:00:27]} Rb6 {[%emt 0:00:02]} 85. Kh4 {[%emt 0:00:06]} Ra6 {[%emt 0:00:08]} 86. Kg4 {[%emt 0:00:40] Weighted Error Value: White=0.10 (very precise) /Black=0.08 (flawless)   Mistake:       	White=2     	Black=2      Inaccurate:     	White=4     	Black=5      OK:         	White=17    	Black=29     Best:        	White=2     	Black=5      Strong:       	White=2     	---} 1/2-1/2

[Event "Marshall CC U2400 03-2025"]
[Site "New York"]
[Date "2025.03.23"]
[Round "3.5"]
[White "Belenky, Nicholas"]
[Black "Diao, Sujia"]
[Result "1-0"]
[Annotator "TA"]
[ECO "B90"]
[WhiteElo "1981"]
[BlackElo "1778"]
[PlyCount "63"]
[EventDate "2025.03.20"]
[EventType "swiss"]
[EventCountry "USA"]
[SourceTitle "playchess.com"]
[Source "ChessBase"]
[SourceQuality "1"]
[TimeControl "5400+30"]

{[%evp 22,63,40,29,108,65,129,94,86,65,139,51,44,33,158,150,229,219,225,219,223,221,218,205,248,154,230,191,203,208,221,50,131,149,345,70,840,825,693,696,1227,1213,1263,1010]} 1. e4 {[%emt 0:00:02]} c5 {[%emt 0:00:07]} 2. Nf3 {[%emt 0:00:06][%cal Bg1f3,Bf3d4,Bd4b3][%mdl 32]} d6 {[%emt 0:00:06]} 3. d4 {[%emt 0:00:04]} cxd4 {[%emt 0:00:04]} 4. Nxd4 {[%emt 0:00:06]} Nf6 {[%emt 0:00:09]} 5. Nc3 {[%emt 0:00:06]} a6 {[%emt 0:00:07]} 6. f3 {[%emt 0:00:21]} e5 {[%emt 0:00:06]} 7. Nb3 {[%emt 0:00:04]} Be6 {[%emt 0:00:06]} 8. Be3 {[%emt 0:00:34]} Be7 {[%emt 0:00:45]} 9. Qd2 {[%emt 0:00:30]} Nbd7 {[%emt 0:00:36]} 10. O-O-O {[%emt 0:00:35]} b5 {[%emt 0:03:07] 10...b5 scores better than 10...0-0.} 11. g4 {[%emt 0:05:35]} h6 {[%emt 0:01:27]} 12. h4 {[%emt 0:03:58]} Nc5 {[%emt 0:04:36] B90: Sicilian Najdorf: Unusual White 6th moves, 6 Be3 Ng4 and 6 Be3 e5.} (12... Qc7 $11) 13. Be2 {[%emt 0:12:19]} Nfd7 $146 {[%emt 0:02:07]} ({Reject} 13... Nxb3+ 14. axb3 O-O 15. g5 $16) (13... Na4 $14) (13... Nxb3+ 14. cxb3 Rc8 15. Kb1 Nh7 16. g5 h5 17. f4 g6 18. f5 gxf5 19. exf5 Bxf5+ {0-1 Yang,A (1630)-Naveen,A PNWCC Online Blitz JP 22 2021 (3)}) 14. Nd5 {[%emt 0:04:53]} Bxd5 {[%emt 0:06:34] White is better.} 15. Qxd5 {[%emt 0:00:12] And now Nxc5 would win.} Rc8 {[%emt 0:01:18]} (15... Ne6 $14) 16. Kb1 {[%emt 0:06:49] White is more active.} (16. Nxc5 $16 Nxc5 17. g5) 16... Nb6 $14 {[%emt 0:04:29]} 17. Qd2 {[%emt 0:00:21] A sharp opening} Nba4 {[%emt 0:05:54]} (17... Nca4 $14) 18. g5 $16 {[%emt 0:03:42]} hxg5 {[%emt 0:01:42]} (18... h5 $16 19. g6 O-O) 19. hxg5 $18 {[%emt 0:01:49]} Rf8 {[%emt 0:03:05] [#]} 20. g6 $1 {[%emt 0:06:59][%mdl 512]} fxg6 {[%emt 0:00:37]} 21. Rdg1 {[%emt 0:02:38]} Bf6 {[%emt 0:01:44]} 22. Rxg6 {[%emt 0:00:28]} Qc7 {[%emt 0:03:48]} 23. Rhg1 {[%emt 0:06:45]} Rd8 {[%emt 0:07:50]} (23... Ne6 $16 24. Nc1 Nac5) 24. Bg5 {[%emt 0:03:23]} Rd7 {[%emt 0:03:29]} 25. Bxf6 {[%emt 0:01:34]} gxf6 {[%emt 0:01:11]} 26. Qh6 $2 {[%emt 0:01:44] [#]} (26. c4 $18) 26... Rdf7 {[%emt 0:00:58]} (26... Rh7 $14 27. Qd2 Ne6) 27. Rg8 $36 {[%emt 0:01:43][%mdl 2048] Keeping Black busy.} Ne6 {[%emt 0:03:52] Prevents f4.} (27... Qe7 $16 {was worth a try.} 28. Nxc5 Nxc5) 28. Bf1 $2 {[%emt 0:09:38]} (28. f4 $1 $18 Nxf4 29. Rxf8+ Rxf8 30. Rg7) 28... Nf4 {[%emt 0:01:09][%mdl 8192]} (28... Ng5 $14 29. Rxf8+ Rxf8) 29. Rxf8+ $18 {[%emt 0:03:38] White is clearly winning.} Rxf8 {[%emt 0:00:07]} 30. Rg7 {[%emt 0:00:11]} Qb6 {[%emt 0:03:59]} 31. Qh7 {[%emt 0:01:52]} Nc5 {[%emt 0:10:23]} 32. Rc7 {[%emt 0:01:08] Weighted Error Value: White=0.46/Black=0.99  Loses game:     	---       	Black=2      Missed win:     	White=2     	---        Mistake:       	White=1     	Black=6      Inaccurate:     	White=2     	---        OK:         	White=6     	Black=3      Best:        	White=1     	Black=2} 1-0

[Event "Marshall CC U2400 03-2025"]
[Site "New York"]
[Date "2025.03.23"]
[Round "3.6"]
[White "Chan, Matthew"]
[Black "Lee, Rohan"]
[Result "1/2-1/2"]
[Annotator "TA"]
[ECO "B30"]
[WhiteElo "1835"]
[BlackElo "2003"]
[PlyCount "100"]
[EventDate "2025.03.20"]
[EventType "swiss"]
[EventCountry "USA"]
[SourceTitle "playchess.com"]
[Source "ChessBase"]
[SourceQuality "1"]
[TimeControl "5400+30"]

{[%evp 13,100,34,44,42,43,36,80,48,64,39,52,2,69,39,27,-4,-3,-49,-32,-44,-51,-66,-33,-44,-18,-122,-18,-69,-11,-18,11,-5,-8,-7,0,0,29,-174,-177,-171,-83,-79,-80,-99,-81,-105,-105,-102,-89,-95,0,0,301,93,273,289,280,260,346,341,317,313,337,254,247,216,187,260,212,186,275,275,232,8,28,28,28,28,28,28,84,32,83,0,0,0,8,8,8]} 1. e4 {[%emt 0:00:03]} c5 {[%emt 0:00:03]} 2. Nf3 {[%emt 0:00:07]} Nc6 {[%emt 0:00:03]} 3. Bb5 {[%emt 0:00:13]} e6 {[%emt 0:00:05]} 4. O-O {[%emt 0:00:18]} Nge7 {[%emt 0:00:15]} 5. Re1 {[%emt 0:00:29]} a6 {[%emt 0:00:07]} 6. Bf1 {[%emt 0:00:09]} Ng6 {[%emt 0:00:16]} 7. c3 {[%emt 0:00:26]} d5 {[%emt 0:02:09]} 8. exd5 {[%emt 0:01:23] B30: Sicilian: 2...Nc6 3 Bb5, lines without ...g6.} Qxd5 {[%emt 0:00:06]} 9. d4 {[%emt 0:01:35]} Be7 {[%emt 0:05:34]} 10. Be3 {[%emt 0:01:41] White is better.} cxd4 {[%emt 0:00:50]} 11. Nxd4 {[%emt 0:00:35]} (11. Bxd4 Nxd4 12. cxd4 O-O $11) 11... O-O {[%emt 0:01:42]} 12. Nd2 $146 {[%emt 0:02:41]} (12. g3 $14) (12. Qb3 Qd7 13. Nd2 e5 14. Nxc6 Qxc6 15. Bc4 Nh4 16. Bd5 Qg6 17. g3 Rd8 18. c4 {½-½ Kuhn,C (2350)-Maze,S (2561) FRA-chT Top 16 GpB 2024 (1.15)}) 12... e5 {[%emt 0:04:15]} (12... Nxd4 $11 13. Bxd4 e5) 13. Nxc6 {[%emt 0:02:37]} Qxc6 {[%emt 0:00:16]} 14. Nc4 {[%emt 0:02:45]} Be6 {[%emt 0:02:40]} 15. Qe2 {[%emt 0:06:47]} (15. Nb6 $11) 15... b5 {[%emt 0:03:15]} 16. Na5 {[%emt 0:03:38]} Qc7 {[%emt 0:01:31]} 17. Nb3 {[%emt 0:00:28]} f5 {[%emt 0:03:50] Black has a king side majority} 18. f3 {[%emt 0:01:33]} Rac8 {[%emt 0:06:40]} 19. Qf2 {[%emt 0:03:34]} (19. Rad1 $11 {keeps the balance.}) 19... Qc6 {[%emt 0:10:17]} (19... Bxb3 $1 $17 20. axb3 f4) 20. f4 {[%emt 0:05:44]} (20. Qc2 $11) 20... Bxb3 {[%emt 0:07:36]} (20... Bd5 $15) 21. axb3 $11 {[%emt 0:00:18]} Rce8 {[%emt 0:00:30]} 22. b4 {[%emt 0:10:25]} exf4 {[%emt 0:07:31]} (22... Nxf4 {looks sharper.} 23. Bxf4 exf4 24. Qxf4 Bd6) 23. Bxf4 {[%emt 0:01:00]} Bd8 {[%emt 0:00:29] aiming for ...Bb6.} 24. Kh1 {[%emt 0:03:30]} Re4 {[%emt 0:05:07]} 25. Be3 {[%emt 0:09:15]} (25. Bg3 $1 $11 {and White stays safe.}) 25... Bh4 $36 {[%emt 0:06:10][%mdl 2048] White is under strong pressure.} 26. g3 {[%emt 0:01:07]} Rxe3+ {[%emt 0:00:54]} (26... Bxg3 $1 $19 {is more deadly.} 27. Qxg3 f4 (27... Rxe3+ 28. Bg2 $17)) 27. Bg2 $17 {[%emt 0:00:22]} Rxe1+ {[%emt 0:01:06]} 28. Qxe1 {[%emt 0:01:38]} Qf6 {[%emt 0:01:08]} 29. gxh4 {[%emt 0:00:11]} Nxh4 {[%emt 0:00:14]} 30. Bd5+ {[%emt 0:00:49]} Kh8 {[%emt 0:00:09]} 31. Qe6 {[%emt 0:01:31]} Qd8 {[%emt 0:01:36]} (31... Qxe6 $1 $17 32. Bxe6 Rd8) 32. Rxa6 $11 {[%emt 0:05:29]} Re8 $2 {[%emt 0:01:49][%mdl 8192] [#]} (32... Qg5 $11 {and Black stays safe.} 33. Ra1 Qd2) 33. Qxe8+ $3 $18 {[%emt 0:00:14][%mdl 512]} Qxe8 {[%emt 0:00:33][%cal Re8e1]} 34. Ra8 {[%emt 0:00:05]} Qxa8 {[%emt 0:00:08]} 35. Bxa8 {[%emt 0:00:05][%mdl 4096] Endgame KB-KN} g5 {[%emt 0:01:55]} 36. Bc6 {[%emt 0:01:03]} Kg7 {[%emt 0:01:02]} 37. Bxb5 {[%emt 0:00:10]} Kf6 {[%emt 0:00:32]} 38. Kg1 {[%emt 0:01:07]} Ke5 {[%emt 0:02:43]} 39. Bc6 {[%emt 0:01:24] Prevents Nf3+} Ng6 {[%emt 0:01:38]} 40. b5 {[%emt 0:01:51]} Kd6 {[%emt 0:01:13]} 41. b4 {[%emt 0:02:02]} Ne5 {[%emt 0:07:42]} (41... Kc7 $142 42. Bg2 Nf4) 42. Bg2 {[%emt 0:03:46]} f4 {[%emt 0:02:47]} 43. Be4 $2 {[%emt 0:06:26]} (43. Bf1 $18) 43... Kc7 {[%emt 0:03:20]} 44. Bxh7 {[%emt 0:01:32]} Kb6 {[%emt 0:00:30]} 45. Bg8 {[%emt 0:02:13] and c4 should not be overlooked} Kxb5 {[%emt 0:01:01]} 46. Kg2 {[%emt 0:02:52]} Ka4 {[%emt 0:03:24] [#]} (46... g4 $11) 47. Be6 {[%emt 0:03:43]} (47. h3 $1 $16) 47... Kb5 {[%emt 0:00:11] [#]} ({Black should try} 47... g4 $14) 48. h4 {[%emt 0:04:27]} gxh4 $11 {[%emt 0:02:15] The position is equal.} 49. Kh3 {[%emt 0:00:30]} Nd3 {[%emt 0:00:59]} 50. Kxh4 {[%emt 0:00:48]} Nxb4 {[%emt 0:01:12] Black escapes into a draw.   Weighted Error Value: White=0.30/Black=0.39  Loses game:     	White=1     	Black=2      Missed win:     	White=1     	---        Mistake:       	White=6     	Black=8      Inaccurate:     	White=3     	Black=6      OK:         	White=14    	Black=10     Best:        	White=6     	Black=3      Brilliant:      	White=1     	---} 1/2-1/2

[Event "Marshall CC U2400 03-2025"]
[Site "New York"]
[Date "2025.03.23"]
[Round "3.7"]
[White "Tse, Whitney"]
[Black "Dubey, Shiv"]
[Result "0-1"]
[Annotator "RC"]
[ECO "D80"]
[WhiteElo "1957"]
[BlackElo "1776"]
[PlyCount "42"]
[EventDate "2025.03.20"]
[EventType "swiss"]
[EventCountry "USA"]
[SourceTitle "playchess.com"]
[Source "ChessBase"]
[SourceQuality "1"]
[TimeControl "5400+30"]

1. d4 {[%emt 0:12:03]} Nf6 {[%emt 0:00:04]} 2. c4 {[%emt 0:00:07]} g6 {[%emt 0:00:04]} 3. Nc3 {[%emt 0:00:04]} d5 {[%emt 0:00:04]} 4. Bg5 {[%emt 0:00:05]} Bg7 {[%emt 0:00:10]} 5. Bxf6 {[%emt 0:00:04]} Bxf6 {[%emt 0:00:04]} 6. cxd5 {[%emt 0:00:09]} c5 {[%emt 0:00:05]} 7. dxc5 {[%emt 0:01:09]} Nd7 {[%emt 0:00:04]} 8. Qa4 {[%emt 0:00:05]} O-O {[%emt 0:01:07]} 9. Qa3 {[%emt 0:11:23]} Qc7 {[%emt 0:09:00]} 10. b4 {[%emt 0:03:42]} a5 {[%emt 0:04:00]} 11. Rc1 {[%emt 0:07:55]} axb4 {[%emt 0:02:25]} 12. Qxb4 {[%emt 0:03:53]} Nxc5 {[%emt 0:02:23]} 13. e3 {[%emt 0:20:08]} Bf5 {[%emt 0:04:25]} 14. Bc4 {[%emt 0:00:47]} Ra4 {[%emt 0:05:09]} 15. Nb5 {[%emt 0:19:21]} Qb6 {[%emt 0:01:03]} 16. Qd2 {[%emt 0:01:06]} Rxc4 {[%emt 0:00:54]} 17. Rxc4 {[%emt 0:07:34]} Nd3+ {[%emt 0:05:39]} 18. Kd1 {[%emt 0:00:24]} Nb2+ {[%emt 0:00:12]} 19. Ke1 {[%emt 0:00:22]} Nxc4 {[%emt 0:00:29]} 20. Qb4 {[%emt 0:00:04]} Nb2 {[%emt 0:05:00]} 21. Qb3 {[%emt 0:01:14]} Qa5+ {[%emt 0:58:39]} 0-1

[Event "Marshall CC U2400 03-2025"]
[Site "New York"]
[Date "2025.03.23"]
[Round "3.8"]
[White "Marzouq, Chowdhury"]
[Black "Shah, Rohail"]
[Result "1/2-1/2"]
[Annotator "NA RC"]
[ECO "A90"]
[WhiteElo "1884"]
[BlackElo "1789"]
[PlyCount "83"]
[EventDate "2025.03.20"]
[EventType "swiss"]
[EventCountry "USA"]
[SourceTitle "playchess.com"]
[Source "ChessBase"]
[SourceQuality "1"]
[TimeControl "5400+30"]

{[%evp 29,82,-13,-17,-16,32767,32767,32767,32767,18,-14,0,-19,-14,-39,-54,-38,27,27,30,0,0,0,0,0,0,-21,-24,-22,-22,-25,-17,-16,-22,-25,-6,32767,0,32767,32767,0,0,0,32767,0,0,0,0,32767,0,0,0,0,0,0,0]} 1. d4 {[%emt 0:00:03]} e6 {[%emt 0:00:08]} 2. Nf3 {[%emt 0:00:05]} f5 {[%emt 0:00:09]} 3. g3 {[%emt 0:00:46]} Nf6 {[%emt 0:00:11]} 4. Bg2 {[%emt 0:00:06]} d5 {[%emt 0:00:12]} 5. O-O {[%emt 0:00:31]} Bd6 {[%emt 0:00:20]} 6. c4 {[%emt 0:05:10]} c6 {[%emt 0:00:08]} 7. b3 {[%emt 0:00:15]} O-O {[%emt 0:00:11]} 8. Ba3 {[%emt 0:00:16]} Ne4 {[%emt 0:00:17]} 9. Ne5 {[%emt 0:10:12] A90: Dutch Defence: Miscellaneous and Modern Stonewall (with ...Bd6).} Bxa3 {[%emt 0:01:27]} 10. Nxa3 {[%emt 0:00:02]} Qd6 {[%emt 0:00:11]} 11. Nc2 {[%emt 0:00:41]} Nd7 {[%emt 0:00:20]} 12. Nd3 {[%emt 0:03:54]} b6 {[%emt 0:01:51]} 13. e3 {[%emt 0:00:53]} a5 {[%emt 0:01:19]} 14. a4 {[%emt 0:00:45]} Ba6 {[%emt 0:00:20]} 15. f3 {[%emt 0:05:51]} Nef6 {[%emt 0:01:52]} 16. cxd5 {[%emt 0:03:25]} cxd5 {[%emt 0:02:09]} 17. Qd2 {[%emt 0:01:24]} Rac8 {[%emt 0:01:04]} 18. Rfc1 {[%emt 0:01:31]} g5 {[%emt 0:06:37]} 19. b4 {[%emt 0:06:40]} Bxd3 {[%emt 0:02:26]} 20. Qxd3 {[%emt 0:00:13]} axb4 {[%emt 0:00:05]} 21. Qd2 {[%emt 0:06:48]} (21. Qb5 $11 {should be considered.}) 21... Rc4 {[%emt 0:00:43]} 22. Bf1 {[%emt 0:01:15]} Rc7 {[%emt 0:07:11]} ({Black should play} 22... b3 $1 $15 23. Bxc4 dxc4) 23. Nxb4 {[%emt 0:02:04]} Rfc8 {[%emt 0:03:44]} 24. Na6 {[%emt 0:01:34]} Rxc1 {[%emt 0:01:24]} 25. Rxc1 {[%emt 0:00:06]} Rxc1 {[%emt 0:00:11]} 26. Qxc1 {[%emt 0:00:11]} g4 {[%emt 0:01:25]} 27. f4 {[%emt 0:01:01]} Ne4 {[%emt 0:00:29]} 28. Bd3 {[%emt 0:03:54]} Ndf6 {[%emt 0:02:16]} 29. Bb5 {[%emt 0:04:21]} Kf7 {[%emt 0:04:39]} 30. Qb2 {[%emt 0:09:57]} Qf8 {[%emt 0:11:23]} 31. Nb4 {[%emt 0:01:02]} Nd6 {[%emt 0:01:03]} 32. Nc6 {[%emt 0:03:43]} Nxb5 {[%emt 0:01:16]} 33. axb5 {[%emt 0:03:46]} Qa8 {[%emt 0:02:35]} 34. Qb4 {[%emt 0:02:04]} Qa1+ {[%emt 0:00:25]} 35. Kg2 {[%emt 0:00:03]} Qa2+ {[%emt 0:00:12]} 36. Kg1 {[%emt 0:00:52]} Qa1+ {[%emt 0:00:28]} 37. Kg2 {[%emt 0:00:08]} Qa2+ {[%emt 0:00:05]} 38. Kf1 {[%emt 0:00:22]} Qa1+ {[%emt 0:00:51]} 39. Ke2 {[%emt 0:00:36]} Qa2+ {[%emt 0:00:15]} 40. Kd3 {[%emt 0:00:35]} Kg8 {[%emt 0:04:09]} ({And not} 40... Qxh2 41. Qe7+ Kg8 42. Qxf6) (40... Kg6 $5 41. Ne5+ $8 Kh5 $11) 41. Ne5 {[%emt 0:00:54]} Ne4 $11 {[%emt 0:00:31]} (41... Qxh2 $2 {perishes.} 42. Qe7 Qh6 43. Qxe6+ Kg7 44. Qd6 $18 (44. Qxf5 Qh5 $18) (44. Qxb6 Qh1 $18)) 42. Nd7 {[%emt 0:01:19]} 1/2-1/2